[Event "Czech Open-E Teams 2022"]
[Site "Pardubice"]
[Date "2022.07.17"]
[Round "7.23"]
[White "Postupa, Pavel"]
[Black "Oresky, Jan"]
[Result "1/2-1/2"]
[ECO "B91"]
[WhiteElo "2235"]
[BlackElo "2274"]
[Annotator "ChessBase"]
[PlyCount "20"]
[EventDate "2022.07.14"]
[EventType "team-tourn"]
[EventCountry "CZE"]
[SourceTitle "playchess.com"]
[Source "ChessBase"]
[SourceQuality "1"]
[TimeControl "5400+30"]

1. e4 {[%emt 0:00:03]} c5 {[%emt 0:00:09]} 2. Nf3 {[%emt 0:00:14]} d6 {[%emt 0:00:06]} 3. d4 {[%emt 0:01:32]} cxd4 {[%emt 0:00:09]} 4. Nxd4 {[%emt 0:00:09]} Nf6 {[%emt 0:00:11]} 5. Nc3 {[%emt 0:00:22]} a6 {[%emt 0:00:32]} 6. g3 {[%emt 0:00:12]} g6 {[%emt 0:01:24]} 7. Bg2 {[%emt 0:00:25]} Bg7 {[%emt 0:00:07]} 8. O-O {[%emt 0:00:26]} O-O {[%emt 0:00:26]} 9. h3 {[%emt 0:01:59]} Qc7 {[%emt 0:03:15]} 10. Bg5 {[%emt 0:06:35]} Nbd7 {[%emt 0:04:04]} 1/2-1/2

[Event "Czech Open-E Teams 2022"]
[Site "Pardubice"]
[Date "2022.07.17"]
[Round "7.24"]
[White "Vedral, Oldrich"]
[Black "Postupa, Martin"]
[Result "1-0"]
[ECO "C50"]
[WhiteElo "2268"]
[BlackElo "2023"]
[Annotator "ChessBase"]
[PlyCount "63"]
[EventDate "2022.07.14"]
[EventType "team-tourn"]
[EventCountry "CZE"]
[SourceTitle "playchess.com"]
[Source "ChessBase"]
[SourceQuality "1"]
[TimeControl "5400+30"]

1. e4 {[%emt 0:00:02]} e5 {[%emt 0:00:07]} 2. Nf3 {[%emt 0:00:15]} Nc6 {[%emt 0:00:05]} 3. Bc4 {[%emt 0:00:59]} Be7 {[%emt 0:01:31]} 4. d4 {[%emt 0:05:49]} d6 {[%emt 0:02:50]} 5. h3 {[%emt 0:14:01]} Nf6 {[%emt 0:00:36]} 6. d5 {[%emt 0:05:28]} Nb8 {[%emt 0:00:28]} 7. Nc3 {[%emt 0:01:00]} O-O {[%emt 0:00:21]} 8. Be3 {[%emt 0:01:52]} h6 {[%emt 0:03:04]} 9. Qd2 {[%emt 0:07:28]} Nh7 {[%emt 0:02:18]} 10. O-O-O {[%emt 0:06:27]} Ng5 {[%emt 0:07:29]} 11. h4 {[%emt 0:09:22]} Nh7 {[%emt 0:05:25]} 12. Rdg1 {[%emt 0:05:27]} Bg4 {[%emt 0:04:17]} 13. Nh2 {[%emt 0:00:30]} Bd7 {[%emt 0:00:51]} 14. g3 {[%emt 0:02:51]} a6 {[%emt 0:05:20]} 15. f4 {[%emt 0:02:41]} f6 {[%emt 0:01:48]} 16. f5 {[%emt 0:01:09]} b5 {[%emt 0:03:29]} 17. Be2 {[%emt 0:01:39]} b4 {[%emt 0:02:21]} 18. Nd1 {[%emt 0:00:08]} a5 {[%emt 0:00:10]} 19. Bh5 {[%emt 0:00:23]} Kh8 {[%emt 0:10:36]} 20. Bg6 {[%emt 0:02:07]} Rg8 {[%emt 0:01:55]} 21. g4 {[%emt 0:00:19]} Be8 {[%emt 0:04:46]} 22. g5 {[%emt 0:03:13]} fxg5 {[%emt 0:04:13]} 23. hxg5 {[%emt 0:00:41]} Bxg6 {[%emt 0:03:53]} 24. fxg6 {[%emt 0:00:09]} Nf8 {[%emt 0:00:32]} 25. gxh6 {[%emt 0:02:28]} gxh6 {[%emt 0:00:58]} 26. g7+ {[%emt 0:06:18]} Rxg7 {[%emt 0:04:22]} 27. Rxg7 {[%emt 0:00:09]} Kxg7 {[%emt 0:00:05]} 28. Bxh6+ {[%emt 0:00:09]} Kg6 {[%emt 0:10:51]} 29. Rg1+ {[%emt 0:02:46]} Kh7 {[%emt 0:01:20]} 30. Rg7+ {[%emt 0:02:34]} Kh8 {[%emt 0:00:08]} 31. Qg2 {[%emt 0:00:22]} Nh7 {[%emt 0:00:50]} 32. Rxh7+ {[%emt 0:00:12]} 1-0

[Event "Czech Open-E Teams 2022"]
[Site "Pardubice"]
[Date "2022.07.17"]
[Round "7.25"]
[White "Slovak, Kilian"]
[Black "Zeman, Matyas"]
[Result "1/2-1/2"]
[ECO "B01"]
[WhiteElo "2321"]
[BlackElo "2262"]
[Annotator "ChessBase"]
[PlyCount "91"]
[EventDate "2022.07.14"]
[EventType "team-tourn"]
[EventCountry "CZE"]
[SourceTitle "playchess.com"]
[Source "ChessBase"]
[SourceQuality "1"]
[TimeControl "5400+30"]

1. e4 {[%emt 0:00:04]} d5 {[%emt 0:01:42]} 2. exd5 {[%emt 0:00:12]} Nf6 {[%emt 0:01:08]} 3. d4 {[%emt 0:00:27]} Bg4 {[%emt 0:00:04]} 4. Bb5+ {[%emt 0:00:55]} c6 {[%emt 0:14:49]} 5. dxc6 {[%emt 0:02:07]} Nxc6 {[%emt 0:01:00]} 6. Bxc6+ {[%emt 0:09:18]} bxc6 {[%emt 0:00:40]} 7. Nf3 {[%emt 0:01:26]} e6 {[%emt 0:06:50]} 8. O-O {[%emt 0:02:54]} Bd6 {[%emt 0:00:29]} 9. Bg5 {[%emt 0:02:27]} Qc7 {[%emt 0:00:41]} 10. h3 {[%emt 0:02:20]} Bh5 {[%emt 0:00:24]} 11. Nbd2 {[%emt 0:01:51]} h6 {[%emt 0:06:23]} 12. Bxf6 {[%emt 0:03:57]} gxf6 {[%emt 0:00:37]} 13. Ne4 {[%emt 0:00:56]} Be7 {[%emt 0:00:09]} 14. Ng3 {[%emt 0:06:07]} Bg6 {[%emt 0:00:14]} 15. Qe2 {[%emt 0:02:04]} Qf4 {[%emt 0:16:28]} 16. Rfe1 {[%emt 0:03:36]} O-O {[%emt 0:01:15]} 17. c3 {[%emt 0:02:22]} Rfd8 {[%emt 0:03:21]} 18. Rad1 {[%emt 0:02:24]} a5 {[%emt 0:01:44]} 19. b3 {[%emt 0:03:01]} Rd5 {[%emt 0:07:40]} 20. Qe3 {[%emt 0:14:10]} Qxe3 {[%emt 0:00:45]} 21. fxe3 {[%emt 0:00:01]} c5 {[%emt 0:04:07]} 22. Ne2 {[%emt 0:07:40]} Rdd8 {[%emt 0:01:03]} 23. Nf4 {[%emt 0:01:30]} Be4 {[%emt 0:00:07]} 24. Nd2 {[%emt 0:01:00]} Bc2 {[%emt 0:01:19]} 25. Rc1 {[%emt 0:00:13]} Bh7 {[%emt 0:00:01]} 26. Nc4 {[%emt 0:02:52]} Be4 {[%emt 0:02:06]} 27. Red1 {[%emt 0:01:33]} Ra7 {[%emt 0:08:42]} 28. Nd3 {[%emt 0:07:27]} cxd4 {[%emt 0:02:04]} 29. exd4 {[%emt 0:02:32]} a4 {[%emt 0:00:02]} 30. Nc5 {[%emt 0:10:11]} Bc6 {[%emt 0:00:22]} 31. b4 {[%emt 0:02:10]} Rd5 {[%emt 0:04:34]} 32. Ne3 {[%emt 0:00:55]} Rg5 {[%emt 0:01:22]} 33. c4 {[%emt 0:00:08]} Bd6 {[%emt 0:01:19]} 34. Nd3 {[%emt 0:03:31]} f5 {[%emt 0:05:35]} 35. b5 {[%emt 0:00:09]} Bf3 {[%emt 0:00:29]} 36. Rd2 {[%emt 0:01:25]} Ba3 {[%emt 0:02:19]} 37. Rf1 {[%emt 0:00:57]} Be4 {[%emt 0:00:13]} 38. c5 {[%emt 0:00:18]} Rd7 {[%emt 0:00:29]} 39. Nc2 {[%emt 0:00:57]} Bxd3 {[%emt 0:01:08]} 40. Rxd3 {[%emt 0:00:01]} Bxc5 {[%emt 0:00:06]} 41. dxc5 {[%emt 0:01:11]} Rxd3 {[%emt 0:00:01]} 42. b6 Rd2 {[%emt 0:00:26]} 43. Rf2 {[%emt 0:01:03]} Rd1+ {[%emt 0:00:03]} 44. Rf1 {[%emt 0:00:01]} Rd2 {[%emt 0:00:04]} 45. Rf2 {[%emt 0:02:03]} Rd1+ {[%emt 0:00:02]} 46. Rf1 {[%emt 0:00:27]} 1/2-1/2

[Event "Czech Open-E Teams 2022"]
[Site "Pardubice"]
[Date "2022.07.17"]
[Round "7.26"]
[White "Skacelik, Petr"]
[Black "Brejnik, Gustav"]
[Result "0-1"]
[ECO "D52"]
[WhiteElo "2170"]
[BlackElo "2292"]
[Annotator "ChessBase"]
[PlyCount "86"]
[EventDate "2022.07.14"]
[EventType "team-tourn"]
[EventCountry "CZE"]
[SourceTitle "playchess.com"]
[Source "ChessBase"]
[SourceQuality "1"]
[TimeControl "5400+30"]

1. d4 {[%emt 0:00:01]} d5 {[%emt 0:00:07]} 2. c4 {[%emt 0:00:06]} c6 {[%emt 0:00:03]} 3. Nc3 {[%emt 0:00:03]} Nf6 {[%emt 0:00:05]} 4. Nf3 {[%emt 0:00:04]} e6 {[%emt 0:00:07]} 5. Bg5 {[%emt 0:00:19]} Nbd7 {[%emt 0:00:13]} 6. e3 {[%emt 0:00:06]} Qa5 {[%emt 0:00:31]} 7. cxd5 {[%emt 0:00:46]} Nxd5 {[%emt 0:00:13]} 8. Qd2 {[%emt 0:00:10]} Bb4 {[%emt 0:01:06]} 9. Rc1 {[%emt 0:00:06]} Nxc3 {[%emt 0:00:50]} 10. bxc3 {[%emt 0:00:12]} Ba3 {[%emt 0:00:03]} 11. Rb1 {[%emt 0:00:19]} b6 {[%emt 0:00:12]} 12. Bd3 {[%emt 0:02:25]} Ba6 {[%emt 0:00:32]} 13. O-O {[%emt 0:00:31]} Bxd3 {[%emt 0:00:29]} 14. Qxd3 {[%emt 0:00:09]} O-O {[%emt 0:00:25]} 15. Rfd1 {[%emt 0:09:22]} Rfe8 {[%emt 0:12:04]} 16. Bf4 {[%emt 0:04:00]} Bf8 {[%emt 0:01:25]} 17. c4 {[%emt 0:01:37]} h6 {[%emt 0:09:54]} 18. h3 {[%emt 0:02:21]} c5 {[%emt 0:02:22]} 19. Ne5 {[%emt 0:03:15]} Nxe5 {[%emt 0:01:10]} 20. Bxe5 {[%emt 0:00:07]} cxd4 {[%emt 0:00:53]} 21. exd4 {[%emt 0:00:14]} Rac8 {[%emt 0:01:32]} 22. Qb3 {[%emt 0:00:56]} Red8 {[%emt 0:09:05]} 23. Rd3 {[%emt 0:07:30]} Bd6 {[%emt 0:03:42]} 24. Bxd6 {[%emt 0:11:24]} Rxd6 {[%emt 0:00:44]} 25. Rbd1 {[%emt 0:00:20]} Rcd8 {[%emt 0:12:14]} 26. a4 {[%emt 0:04:29]} Rxd4 {[%emt 0:04:16]} 27. Rxd4 {[%emt 0:00:45]} Rxd4 {[%emt 0:00:06]} 28. Rxd4 {[%emt 0:00:24]} Qe1+ {[%emt 0:00:05]} 29. Kh2 {[%emt 0:00:05]} Qe5+ {[%emt 0:00:03]} 30. Kg1 {[%emt 0:08:11]} Qxd4 {[%emt 0:00:25]} 31. Qb5 {[%emt 0:00:20]} g6 {[%emt 0:05:28]} 32. a5 {[%emt 0:05:17]} Qa1+ {[%emt 0:02:33]} 33. Kh2 {[%emt 0:00:01]} Qxa5 {[%emt 0:00:24]} 34. Qd7 {[%emt 0:00:42]} Qe5+ {[%emt 0:02:13]} 35. g3 {[%emt 0:00:48]} Qc5 {[%emt 0:01:45]} 36. Kg2 {[%emt 0:00:21]} Qxc4 {[%emt 0:01:58]} 37. Qxa7 {[%emt 0:00:09]} Qd5+ {[%emt 0:00:21]} 38. Kg1 {[%emt 0:00:25]} b5 {[%emt 0:00:10]} 39. h4 {[%emt 0:00:26]} h5 {[%emt 0:00:13]} 40. Qc7 {[%emt 0:02:57]} Kg7 {[%emt 0:01:58]} 41. Qc3+ {[%emt 0:00:28]} e5 {[%emt 0:00:09]} 42. Qb2 {[%emt 0:00:40]} Qc5 {[%emt 0:00:21]} 43. Kf1 {[%emt 0:03:08]} b4 {[%emt 0:00:33]} 0-1

[Event "Czech Open-E Teams 2022"]
[Site "Pardubice"]
[Date "2022.07.17"]
[Round "7.27"]
[White "Parizek, Vojtech"]
[Black "Bures, Vit"]
[Result "1-0"]
[ECO "C89"]
[WhiteElo "2217"]
[BlackElo "2112"]
[Annotator "ChessBase"]
[PlyCount "104"]
[EventDate "2022.07.14"]
[EventType "team-tourn"]
[EventCountry "CZE"]
[SourceTitle "playchess.com"]
[Source "ChessBase"]
[SourceQuality "1"]
[TimeControl "5400+30"]

1. e4 {[%emt 0:00:05]} e5 {[%emt 0:00:03]} 2. Nf3 {[%emt 0:00:10]} Nc6 {[%emt 0:00:02]} 3. Bb5 {[%emt 0:00:14]} a6 {[%emt 0:00:03]} 4. Ba4 {[%emt 0:00:07]} Nf6 {[%emt 0:00:02]} 5. O-O {[%emt 0:00:10]} Be7 {[%emt 0:00:02]} 6. Re1 {[%emt 0:00:11]} b5 {[%emt 0:00:03]} 7. Bb3 {[%emt 0:00:07]} O-O {[%emt 0:00:03]} 8. c3 {[%emt 0:00:42]} d5 {[%emt 0:00:03]} 9. exd5 {[%emt 0:00:09]} Nxd5 {[%emt 0:00:04]} 10. Nxe5 {[%emt 0:00:12]} Nxe5 {[%emt 0:00:02]} 11. Rxe5 {[%emt 0:00:11]} c6 {[%emt 0:00:01]} 12. d4 {[%emt 0:00:12]} Bd6 {[%emt 0:01:10]} 13. Re1 {[%emt 0:00:09]} Qh4 {[%emt 0:00:02]} 14. g3 {[%emt 0:00:11]} Qh3 {[%emt 0:00:03]} 15. Be3 {[%emt 0:00:07]} Bg4 {[%emt 0:00:07]} 16. Qd3 {[%emt 0:00:08]} Rae8 {[%emt 0:00:09]} 17. Nd2 {[%emt 0:00:17]} Qh5 {[%emt 0:00:03]} 18. a4 {[%emt 0:00:27]} Re6 {[%emt 0:00:08]} 19. axb5 {[%emt 0:00:53]} axb5 {[%emt 0:00:01]} 20. Nf1 {[%emt 0:00:11]} Rfe8 {[%emt 0:08:41]} 21. Qd2 {[%emt 0:19:00]} h6 {[%emt 0:07:24]} 22. Bd1 {[%emt 0:15:55]} f5 {[%emt 0:04:28]} 23. Bxg4 {[%emt 0:08:46]} Qxg4 {[%emt 0:03:49]} 24. Qd1 {[%emt 0:01:25]} Qg6 {[%emt 0:07:58]} 25. Qf3 {[%emt 0:06:45]} f4 {[%emt 0:02:17]} 26. Bd2 {[%emt 0:00:38]} h5 {[%emt 0:12:36]} 27. Rxe6 {[%emt 0:04:08]} Rxe6 {[%emt 0:00:53]} 28. Re1 {[%emt 0:05:47]} Rxe1 {[%emt 0:03:38]} 29. Bxe1 {[%emt 0:01:49]} h4 {[%emt 0:00:09]} 30. Nd2 {[%emt 0:09:37]} fxg3 {[%emt 0:09:19]} 31. hxg3 {[%emt 0:01:00]} hxg3 {[%emt 0:01:01]} 32. fxg3 {[%emt 0:00:08]} Qh6 {[%emt 0:08:38]} 33. Ne4 {[%emt 0:06:35]} Qc1 {[%emt 0:01:12]} 34. Qe2 {[%emt 0:00:30]} Be7 {[%emt 0:02:17]} 35. Kf2 {[%emt 0:01:22]} Qh6 {[%emt 0:00:35]} 36. Kg2 {[%emt 0:01:22]} Qc1 {[%emt 0:02:28]} 37. Bf2 {[%emt 0:05:02]} Bf8 {[%emt 0:01:28]} 38. Qg4 {[%emt 0:04:39]} Qxb2 {[%emt 0:03:22]} 39. Qe6+ {[%emt 0:00:30]} Kh8 {[%emt 0:00:09]} 40. Ng5 {[%emt 0:04:52]} Nf6 {[%emt 0:01:07]} 41. Nf7+ {[%emt 0:00:18]} Kh7 {[%emt 0:01:09]} 42. Qxc6 {[%emt 0:00:46]} b4 {[%emt 0:00:48]} 43. cxb4 {[%emt 0:00:38]} Bxb4 {[%emt 0:00:53]} 44. Qe6 {[%emt 0:00:37]} Qc2 {[%emt 0:00:37]} 45. Qh3+ {[%emt 0:04:28]} Kg8 {[%emt 0:00:21]} 46. Qe6 {[%emt 0:00:48]} Qe4+ {[%emt 0:02:30]} 47. Qxe4 {[%emt 0:00:06]} Nxe4 {[%emt 0:00:01]} 48. Ne5 {[%emt 0:00:20]} Bd6 {[%emt 0:01:15]} 49. Nc4 {[%emt 0:00:33]} Bc7 {[%emt 0:00:08]} 50. Kf3 {[%emt 0:00:45]} Nf6 {[%emt 0:00:58]} 51. Be3 {[%emt 0:00:32]} Nd5 {[%emt 0:00:49]} 52. g4 {[%emt 0:01:13]} Kf7 {[%emt 0:01:31]} 1-0

[Event "Czech Open-E Teams 2022"]
[Site "Pardubice"]
[Date "2022.07.17"]
[Round "7.28"]
[White "Vavra, Michal"]
[Black "Dvorak, Jan"]
[Result "1/2-1/2"]
[ECO "D37"]
[WhiteElo "1939"]
[BlackElo "2194"]
[Annotator "ChessBase"]
[PlyCount "38"]
[EventDate "2022.07.14"]
[EventType "team-tourn"]
[EventCountry "CZE"]
[SourceTitle "playchess.com"]
[Source "ChessBase"]
[SourceQuality "1"]
[TimeControl "5400+30"]

1. Nf3 {[%emt 0:00:05]} e6 {[%emt 0:00:06]} 2. c4 {[%emt 0:01:38]} d5 {[%emt 0:00:07]} 3. d4 {[%emt 0:00:37]} Nf6 {[%emt 0:00:09]} 4. Nc3 {[%emt 0:01:18]} Nbd7 {[%emt 0:00:10]} 5. g3 {[%emt 0:10:16]} Be7 {[%emt 0:01:46]} 6. Bg2 {[%emt 0:00:08]} O-O {[%emt 0:00:52]} 7. cxd5 {[%emt 0:00:36]} exd5 {[%emt 0:01:03]} 8. O-O {[%emt 0:00:10]} c6 {[%emt 0:02:22]} 9. Qc2 {[%emt 0:04:35]} Re8 {[%emt 0:05:53]} 10. Bg5 {[%emt 0:04:37]} Ne4 {[%emt 0:10:10]} 11. Bxe7 {[%emt 0:05:57]} Qxe7 {[%emt 0:00:10]} 12. e3 {[%emt 0:01:49]} Ndf6 {[%emt 0:04:04]} 13. Rad1 {[%emt 0:05:46]} Bg4 {[%emt 0:07:46]} 14. Rde1 {[%emt 0:03:38]} Qe6 {[%emt 0:08:54]} 15. Ne5 {[%emt 0:01:50]} Bh3 {[%emt 0:01:18]} 16. Nxe4 {[%emt 0:04:09]} Nxe4 {[%emt 0:05:00]} 17. Qe2 {[%emt 0:07:02]} Bxg2 {[%emt 0:04:51]} 18. Kxg2 {[%emt 0:00:27]} f6 {[%emt 0:02:40]} 19. Nd3 {[%emt 0:06:13]} Rad8 {[%emt 0:03:04]} 1/2-1/2

[Event "Czech Open-E Teams 2022"]
[Site "Pardubice"]
[Date "2022.07.17"]
[Round "7.29"]
[White "Eret, Matous"]
[Black "Walek, Petr"]
[Result "1-0"]
[ECO "A00"]
[WhiteElo "2273"]
[BlackElo "2237"]
[Annotator "ChessBase"]
[PlyCount "65"]
[EventDate "2022.07.14"]
[EventType "team-tourn"]
[EventCountry "CZE"]
[SourceTitle "playchess.com"]
[Source "ChessBase"]
[SourceQuality "1"]
[TimeControl "5400+30"]

1. a3 {[%emt 0:00:02]} e5 {[%emt 0:09:03]} 2. e3 {[%emt 0:00:11]} d6 {[%emt 0:02:56]} 3. c4 {[%emt 0:00:08]} g6 {[%emt 0:00:54]} 4. b4 {[%emt 0:00:06]} Bg7 {[%emt 0:02:40]} 5. Bb2 {[%emt 0:00:05]} f5 {[%emt 0:01:52]} 6. h4 {[%emt 0:00:09]} Nf6 {[%emt 0:05:13]} 7. Be2 {[%emt 0:00:21]} h6 {[%emt 0:01:25]} 8. d4 {[%emt 0:00:09]} Qe7 {[%emt 0:03:33]} 9. dxe5 {[%emt 0:00:58]} dxe5 {[%emt 0:00:04]} 10. Nf3 {[%emt 0:00:30]} Nbd7 {[%emt 0:01:02]} 11. Nc3 {[%emt 0:00:07]} e4 {[%emt 0:07:39]} 12. Nd4 {[%emt 0:00:43]} Ne5 {[%emt 0:03:06]} 13. Qb3 {[%emt 0:00:41]} O-O {[%emt 0:03:24]} 14. c5+ {[%emt 0:01:22]} Kh8 {[%emt 0:01:10]} 15. O-O-O {[%emt 0:00:13]} h5 {[%emt 0:07:27]} 16. Kb1 {[%emt 0:00:19]} Rd8 {[%emt 0:09:05]} 17. f3 {[%emt 0:03:03]} c6 {[%emt 0:05:48]} 18. Rhf1 {[%emt 0:02:45]} exf3 {[%emt 0:12:35]} 19. gxf3 {[%emt 0:00:06]} Nh7 {[%emt 0:00:26]} 20. e4 {[%emt 0:02:35]} Qxh4 {[%emt 0:03:53]} 21. f4 {[%emt 0:13:03]} Ng4 {[%emt 0:00:43]} 22. e5 {[%emt 0:02:14]} Nxe5 {[%emt 0:10:25]} 23. fxe5 {[%emt 0:02:28]} Rxd4 {[%emt 0:00:15]} 24. Rxd4 {[%emt 0:00:04]} Qxd4 {[%emt 0:00:11]} 25. Rd1 {[%emt 0:00:03]} Qh4 {[%emt 0:02:21]} 26. Qf7 {[%emt 0:00:36]} b5 {[%emt 0:02:22]} 27. cxb6 {[%emt 0:00:05]} axb6 {[%emt 0:00:08]} 28. Bc4 {[%emt 0:00:35]} Ba6 {[%emt 0:00:56]} 29. Bxa6 {[%emt 0:00:05]} Rxa6 {[%emt 0:00:21]} 30. Rd7 {[%emt 0:00:04]} Qe1+ {[%emt 0:00:58]} 31. Nd1 {[%emt 0:01:39]} Qe4+ {[%emt 0:01:33]} 32. Ka2 {[%emt 0:00:11]} Qc4+ {[%emt 0:02:18]} 33. Qxc4 {[%emt 0:00:06]} 1-0

[Event "Czech Open-E Teams 2022"]
[Site "Pardubice"]
[Date "2022.07.17"]
[Round "7.30"]
[White "Kratochvil, Vit"]
[Black "Eret, Jonas"]
[Result "1/2-1/2"]
[ECO "B07"]
[WhiteElo "2237"]
[BlackElo "2219"]
[Annotator "ChessBase"]
[PlyCount "79"]
[EventDate "2022.07.14"]
[EventType "team-tourn"]
[EventCountry "CZE"]
[SourceTitle "playchess.com"]
[Source "ChessBase"]
[SourceQuality "1"]
[TimeControl "5400+30"]

1. e4 d6 2. d4 Nf6 3. Nc3 Nbd7 4. h3 {[%emt 0:14:23]} e5 {[%emt 0:03:39]} 5. Nge2 {[%emt 0:00:30]} Be7 {[%emt 0:05:27]} 6. g4 {[%emt 0:06:35]} exd4 {[%emt 0:03:01]} 7. Nxd4 {[%emt 0:00:18]} Nb6 {[%emt 0:03:48]} 8. g5 {[%emt 0:15:10]} Nfd7 {[%emt 0:02:14]} 9. Rg1 {[%emt 0:00:45]} Nc5 {[%emt 0:04:48]} 10. Qf3 {[%emt 0:10:25]} c6 {[%emt 0:12:48]} 11. Be3 {[%emt 0:02:51]} Qc7 {[%emt 0:03:29]} 12. O-O-O {[%emt 0:04:12]} g6 {[%emt 0:08:18]} 13. Qg3 {[%emt 0:11:08]} Ne6 {[%emt 0:15:19]} 14. f4 {[%emt 0:08:23]} Ng7 {[%emt 0:06:38]} 15. f5 {[%emt 0:07:16]} gxf5 {[%emt 0:02:05]} 16. Bd3 {[%emt 0:01:18]} fxe4 {[%emt 0:01:21]} 17. Nxe4 {[%emt 0:00:07]} Nd5 {[%emt 0:02:02]} 18. Nb5 {[%emt 0:12:07]} cxb5 {[%emt 0:00:35]} 19. Bxb5+ {[%emt 0:00:02]} Kf8 {[%emt 0:00:36]} 20. Rxd5 {[%emt 0:00:10]} Be6 {[%emt 0:02:07]} 21. Rc5 {[%emt 0:04:44]} Qa5 {[%emt 0:02:58]} 22. Nxd6 {[%emt 0:00:21]} Qxa2 {[%emt 0:00:54]} 23. Bd4 {[%emt 0:00:37]} Rd8 {[%emt 0:04:00]} 24. Qe5 {[%emt 0:00:27]} Rg8 {[%emt 0:00:22]} 25. Nxb7 {[%emt 0:00:35]} Rxd4 {[%emt 0:13:29]} 26. Qxd4 {[%emt 0:00:13]} Nf5 {[%emt 0:00:34]} 27. Rxf5 {[%emt 0:00:44]} Bxf5 {[%emt 0:00:40]} 28. h4 {[%emt 0:00:30]} Be6 {[%emt 0:02:06]} 29. Kd2 {[%emt 0:00:35]} Bd5 {[%emt 0:00:40]} 30. b3 {[%emt 0:00:26]} Bxb3 {[%emt 0:00:30]} 31. Qc3 {[%emt 0:00:31]} Be6 {[%emt 0:00:20]} 32. Bc6 {[%emt 0:00:23]} Qc4 {[%emt 0:01:07]} 33. Qxc4 {[%emt 0:00:27]} Bxc4 {[%emt 0:00:05]} 34. Rg4 {[%emt 0:00:29]} Be6 {[%emt 0:00:47]} 35. Ra4 {[%emt 0:00:26]} Kg7 {[%emt 0:00:11]} 36. Rxa7 {[%emt 0:00:26]} Rc8 {[%emt 0:00:09]} 37. Be4 {[%emt 0:00:46]} Rc4 {[%emt 0:01:16]} 38. Kd3 {[%emt 0:00:34]} Rb4 {[%emt 0:00:25]} 39. Na5 {[%emt 0:00:30]} Bc5 {[%emt 0:00:33]} 40. Nc6 {[%emt 0:00:27]} 1/2-1/2

[Event "Czech Open-E Teams 2022"]
[Site "Pardubice"]
[Date "2022.07.17"]
[Round "7.31"]
[White "Simet, Martin"]
[Black "Ruzicka, Josef"]
[Result "1-0"]
[ECO "B90"]
[WhiteElo "2155"]
[BlackElo "2177"]
[Annotator "ChessBase"]
[PlyCount "55"]
[EventDate "2022.07.14"]
[EventType "team-tourn"]
[EventCountry "CZE"]
[SourceTitle "playchess.com"]
[Source "ChessBase"]
[SourceQuality "1"]
[TimeControl "5400+30"]

1. e4 {[%emt 0:05:01]} c5 {[%emt 0:05:59]} 2. Nf3 {[%emt 0:00:30]} d6 {[%emt 0:00:30]} 3. d4 {[%emt 0:00:30]} cxd4 {[%emt 0:00:30]} 4. Nxd4 {[%emt 0:00:30]} Nf6 {[%emt 0:00:30]} 5. Nc3 {[%emt 0:00:30]} a6 {[%emt 0:00:30]} 6. h3 {[%emt 0:00:30]} e6 {[%emt 0:00:30]} 7. g4 {[%emt 0:00:30]} Be7 {[%emt 0:00:30]} 8. Bg2 {[%emt 0:00:30]} Nc6 {[%emt 0:00:30]} 9. O-O {[%emt 0:01:16]} Qc7 {[%emt 0:10:50]} 10. b3 {[%emt 0:02:31]} O-O {[%emt 0:05:09]} 11. Nce2 {[%emt 0:01:39]} Nxd4 12. Nxd4 d5 {[%emt 0:01:09]} 13. exd5 {[%emt 0:04:24]} Nxd5 {[%emt 0:00:24]} 14. Qf3 {[%emt 0:02:37]} Bf6 {[%emt 0:07:17]} 15. Bb2 {[%emt 0:02:48]} Bxd4 {[%emt 0:10:39]} 16. Bxd4 {[%emt 0:00:12]} Qxc2 {[%emt 0:00:08]} 17. Rfc1 {[%emt 0:02:51]} Qg6 {[%emt 0:00:20]} 18. Qg3 {[%emt 0:01:44]} Rd8 {[%emt 0:08:32]} 19. Rc5 {[%emt 0:02:31]} b6 {[%emt 0:05:22]} 20. Rc6 {[%emt 0:01:02]} b5 {[%emt 0:04:25]} 21. Re1 {[%emt 0:02:29]} Bb7 {[%emt 0:04:20]} 22. Rd6 {[%emt 0:04:12]} Qg5 {[%emt 0:07:37]} 23. h4 {[%emt 0:04:36]} Qe7 {[%emt 0:02:10]} 24. Rxd8+ {[%emt 0:01:01]} Rxd8 {[%emt 0:00:15]} 25. g5 {[%emt 0:00:05]} Nb4 {[%emt 0:10:57]} 26. Bf6 {[%emt 0:00:27]} Qd7 {[%emt 0:03:34]} 27. Bxd8 {[%emt 0:02:15]} Bxg2 {[%emt 0:00:11]} 28. Ba5 {[%emt 0:00:05]} 1-0